bitfinex-derivatives/quotes_SOLF0:USTF0_20250529
["timestamp","ask_amount","ask_price","bid_price","bid_amount"]
[1748497396484,0.04008854,172.31,172.27,0.03692331]
[1748497397290,0.04008854,172.31,172.28,5.8021]
[1748497398592,0.04008854,172.31,172.29,5.802]
[1748497403095,5.84148854,172.31,172.28,5.8023]
[1748497403298,0.04008854,172.31,172.27,0.03692331]
[1748497404698,5.84158854,172.31,172.28,5.8022]
[1748497405602,0.04008854,172.31,172.28,5.8022]
[1748497406905,0.04008854,172.31,172.3,5.8017]
[1748497407402,2.0718,172.39,172.29,30.12]
[1748497407600,2.0718,172.39,172.3,1.9496]
[1748497407796,2.0718,172.39,172.3,3.9123]
[1748497408295,0.04145779,172.36,172.35,5.7999]
[1748497431915,0.04145779,172.36,172.35,9.02982111]
[1748497441733,0.04145779,172.36,172.35,5.7999]
[1748497441934,0.04145779,172.36,172.35,9.02982111]
[1748497444635,0.04145779,172.36,172.35,5.7999]
[1748497444838,0.04145779,172.36,172.35,9.02982111]
[1748497445839,30.12,172.43,172.39,5.7986]
[1748497446035,5.7979,172.42,172.39,5.7986]
[1748497446534,5.7984,172.4,172.36,3.22992111]
[1748497446737,33.34992111,172.43,172.36,0.04381734]
[1748497447436,5.7986,172.4,172.37,5.7993]
[1748497449642,5.7982,172.41,172.38,5.799]
[1748497455444,5.7985,172.4,172.37,5.7992]
[1748497455946,5.7985,172.4,172.37,5.7993]
[1748497457242,5.7985,172.4,172.38,5.799]
[1748497458047,5.7985,172.4,172.37,5.7993]
[1748497461446,5.7982,172.41,172.38,5.799]
[1748497463842,30.12,172.43,172.37,3.22992111]
[1748497464446,35.9176,172.43,172.37,3.22992111]
[1748497465046,35.9176,172.43,172.4,5.7982]
[1748497465249,5.7977,172.42,172.4,5.83484067]
[1748497465641,30.12,172.43,172.4,5.83484067]
[1748497465838,2.0166,172.45,172.4,0.03664067]
[1748497466245,7.8135,172.45,172.41,5.7977]
[1748497466843,5.7971,172.44,172.4,5.83494067]
[1748497468641,5.7975,172.43,172.4,5.83494067]
[1748497469053,5.7977,172.42,172.4,0.03664067]
[1748497469248,5.24652111,172.45,172.4,0.03664067]
[1748497470645,5.798,172.41,172.4,0.03664067]
[1748497480147,30.0,172.43,172.4,0.03664067]
[1748497480956,35.7975,172.43,172.4,5.83494067]
[1748497482056,5.7977,172.42,172.4,5.83494067]
[1748497485960,5.7977,172.42,172.4,0.03664067]
[1748497488865,5.7977,172.42,172.4,5.83494067]
[1748497490865,5.7975,172.43,172.4,5.83494067]
[1748497491556,5.7977,172.42,172.4,5.83494067]
[1748497494968,5.7975,172.43,172.4,5.83494067]
[1748497495273,32.0166,172.45,172.4,5.83494067]
[1748497495770,5.7976,172.43,172.4,5.83494067]
[1748497496564,5.7972,172.44,172.4,5.83494067]
[1748497496772,30.0,172.45,172.4,5.83494067]
[1748497497867,5.7974,172.43,172.4,5.83494067]
[1748497501270,3.22872124,172.44,172.4,0.03664067]
[1748497501973,5.798,172.41,172.4,0.03664067]
[1748497506887,9.02652124,172.42,172.4,0.03664067]
[1748497507083,5.7978,172.42,172.4,0.03664067]
[1748497508083,5.798,172.41,172.4,0.03664067]
[1748497508586,3.22872124,172.44,172.4,0.03664067]
[1748497508788,5.798,172.42,172.4,0.03664067]
[1748497509384,5.798,172.41,172.4,0.03664067]
[1748497511082,5.7995,172.37,172.31,35.18982124]
[1748497511284,5.7995,172.37,172.33,5.8004]
[1748497511990,5.83711619,172.37,172.33,5.84309728]
[1748497512989,0.03761619,172.37,172.34,5.8004]
[1748497513685,0.03761619,172.37,172.33,0.04269728]
[1748497514485,5.83711619,172.37,172.33,5.84339728]
[1748497514693,5.83711619,172.37,172.33,0.04269728]
[1748497515087,0.03761619,172.37,172.33,0.04269728]
[1748497515991,0.03761619,172.37,172.34,5.8002]
[1748497516492,5.83701619,172.37,172.34,5.8002]
[1748497516688,5.83701619,172.37,172.33,5.84329728]
[1748497516888,5.83701619,172.37,172.33,0.04269728]
[1748497517590,5.83701619,172.37,172.33,5.84329728]
[1748497517892,5.7997,172.36,172.33,5.84329728]
[1748497521294,33.20633743,172.37,172.34,5.8003]
[1748497522896,39.00573743,172.37,172.34,5.8003]
[1748497523997,39.00573743,172.37,172.33,5.84329728]
[1748497526398,5.7997,172.36,172.33,5.84329728]
[1748497527602,39.00583743,172.37,172.33,5.84329728]
[1748497530304,39.00583743,172.37,172.34,5.8004]
[1748497532309,29.97761619,172.37,172.35,5.8]
[1748497532500,29.97761619,172.37,172.33,0.04269728]
[1748497533100,29.97761619,172.37,172.35,5.7998]
[1748497533300,0.03761619,172.37,172.35,5.7998]
[1748497534406,0.03761619,172.37,172.36,5.7997]
[1748497536307,0.03761619,172.37,172.35,5.7999]
[1748497539212,5.83701619,172.37,172.34,5.8003]
[1748497539613,0.03761619,172.37,172.33,0.04269728]
[1748497540414,0.03761619,172.37,172.34,5.8003]
[1748497541906,0.03761619,172.37,172.33,0.04269728]
[1748497542914,0.03761619,172.37,172.35,5.7999]
[1748497543616,0.03761619,172.37,172.36,5.7997]
[1748497545009,3.22872124,172.42,172.35,3.22872124]
[1748497545010,3.22872124,172.42,172.39,5.7984]
[1748497545610,9.02662124,172.42,172.39,5.7984]
[1748497545816,5.7979,172.42,172.4,5.7984]
[1748497546117,29.88,172.43,172.39,0.04305733]
[1748497546518,5.7979,172.42,172.39,5.84155733]
[1748497553812,35.6775,172.43,172.39,5.84155733]
[1748497554012,29.88,172.43,172.39,0.04305733]
[1748497554420,5.7978,172.42,172.39,0.04305733]
[1748497555610,5.7978,172.42,172.39,5.84175733]
[1748497556218,5.7978,172.42,172.39,0.04305733]
[1748497557110,5.7978,172.42,172.39,5.84175733]
[1748497560323,35.6775,172.43,172.39,5.84175733]
[1748497560525,29.88,172.43,172.39,5.84175733]
[1748497560924,29.88,172.43,172.4,5.7983]
[1748497561529,35.6775,172.43,172.4,5.7983]
[1748497564628,5.7977,172.42,172.39,5.84165733]
[1748497570829,29.88,172.43,172.39,0.04305733]
[1748497571223,5.7979,172.42,172.39,5.84175733]
[1748497573334,29.88,172.43,172.39,0.04305733]
[1748497573632,5.798,172.42,172.39,0.04305733]
[1748497573836,29.88,172.43,172.39,0.04305733]
[1748497574331,5.7983,172.41,172.39,0.04305733]
[1748497576331,5.7977,172.42,172.39,5.84165733]
[1748497576526,29.88,172.43,172.39,0.04305733]
[1748497576727,35.09122124,172.46,172.39,0.04305733]
[1748497577231,5.7971,172.44,172.4,5.7981]
[1748497577734,5.7974,172.43,172.4,5.7981]
[1748497579028,5.7971,172.44,172.41,5.798]
[1748497579430,33.02872124,172.46,172.39,0.04305733]
[1748497579631,5.7971,172.44,172.4,5.798]
[1748497579826,2.0529,172.5,172.39,3.27177857]
[1748497580028,29.8,172.49,172.43,0.04127109]
[1748497580834,29.8,172.49,172.44,5.7968]
[1748497581533,29.8,172.49,172.43,5.83847109]
[1748497581534,5.7958,172.48,172.43,5.83847109]
[1748497581731,33.02872124,172.49,172.43,5.83847109]
[1748497583033,5.796,172.47,172.43,5.83847109]
[1748497584940,5.7958,172.48,172.43,0.04127109]
[1748497585527,5.7958,172.48,172.45,5.7967]
[1748497587538,29.8,172.49,172.46,5.7961]
[1748497587737,31.7093,172.52,172.46,5.7961]
[1748497587938,31.7093,172.52,172.47,0.03879742]
[1748497588436,5.7956,172.49,172.47,0.03879742]
[1748497589236,5.7951,172.5,172.47,0.03879742]
[1748497589443,31.7093,172.52,172.47,0.03879742]
[1748497589736,5.7951,172.5,172.47,5.83469742]
[1748497592843,5.7954,172.49,172.47,0.03879742]
[1748497593147,29.74,172.52,172.47,0.03879742]
[1748497593331,3.22872124,172.49,172.47,0.03879742]
[1748497593537,5.7957,172.48,172.47,0.03879742]
[1748497593837,3.22872124,172.49,172.42,5.7976]
[1748497594149,3.22872124,172.45,172.36,32.94872124]
[1748497594440,29.72,172.44,172.36,32.94872124]
[1748497594638,0.04347889,172.42,172.38,0.04013272]
[1748497595946,5.84117889,172.42,172.39,5.7986]
[1748497596336,5.84117889,172.42,172.38,0.04013272]
[1748497596537,5.84117889,172.42,172.38,5.83903272]
[1748497596737,5.84117889,172.42,172.38,0.04013272]
[1748497597937,5.84117889,172.42,172.39,5.7985]
[1748497600139,0.04347889,172.42,172.4,5.7983]
[1748497602341,5.84117889,172.42,172.39,5.7985]
[1748497603838,0.04347889,172.42,172.4,5.7981]
[1748497604044,0.04347889,172.42,172.38,3.26885396]
[1748497604747,0.04347889,172.42,172.4,5.7982]
[1748497607143,0.04347889,172.42,172.41,5.798]
[1748497607950,0.04347889,172.42,172.4,5.7983]
[1748497609142,0.04347889,172.42,172.41,5.798]
[1748497614351,5.7957,172.48,172.43,5.797]
[1748497615348,5.7957,172.48,172.44,0.04374687]
[1748497615548,5.7961,172.47,172.44,0.04374687]
[1748497615950,34.94992124,172.5,172.44,0.04374687]
[1748497617654,31.7212,172.5,172.44,0.04374687]
[1748497617855,34.94992124,172.5,172.44,0.04374687]
[1748497618044,5.7963,172.47,172.44,0.04374687]
[1748497619051,5.7963,172.46,172.44,0.04374687]
[1748497619656,500.98,172.53,172.44,0.04374687]
[1748497619657,29.66,172.57,172.44,3.27246811]
[1748497619857,29.66,172.57,172.49,0.03936762]
[1748497620156,5.7939,172.54,172.49,0.03936762]
[1748497620659,29.66,172.57,172.49,0.03936762]
[1748497620952,3.22872124,172.54,172.49,0.03936762]
[1748497621964,5.7945,172.52,172.49,0.03936762]
[1748497622163,3.22872124,172.54,172.49,0.03936762]
[1748497622454,5.795,172.5,172.49,0.03936762]
[1748497624461,5.796,172.48,172.43,29.66]
[1748497625054,5.796,172.48,172.43,35.4572]
[1748497625250,5.796,172.48,172.44,0.0400862]
[1748497625453,0.03921049,172.47,172.44,0.0400862]
[1748497627362,0.03921049,172.47,172.44,5.8370862]
[1748497628461,5.83521049,172.47,172.44,0.0400862]
[1748497628660,0.03921049,172.47,172.44,0.0400862]
[1748497629652,5.83521049,172.47,172.44,0.0400862]
[1748497633960,5.7963,172.46,172.44,0.0400862]
[1748497636269,5.83541049,172.47,172.44,0.0400862]
[1748497636658,0.03921049,172.47,172.44,0.0400862]
[1748497639168,0.03921049,172.47,172.45,5.7964]
[1748497640165,0.03921049,172.47,172.44,5.8368862]
[1748497642066,0.03921049,172.47,172.45,5.7965]
[1748497644672,0.03921049,172.47,172.44,0.0400862]
[1748497645573,0.03921049,172.47,172.44,5.8369862]
[1748497646073,0.03921049,172.47,172.44,0.0400862]
[1748497651286,5.83521049,172.47,172.44,0.0400862]
[1748497653981,5.7964,172.46,172.44,0.0400862]
[1748497655083,5.83521049,172.47,172.44,0.0400862]
[1748497657386,5.7963,172.46,172.44,0.0400862]
[1748497657887,5.83521049,172.47,172.44,0.0400862]
[1748497663683,5.7963,172.46,172.44,0.0400862]
[1748497664492,5.83521049,172.47,172.44,0.0400862]
[1748497666898,0.03921049,172.47,172.44,0.0400862]
[1748497668195,5.7964,172.45,172.44,0.0400862]
[1748497680516,9.02326275,172.45,172.44,0.0400862]
[1748497680810,9.02326275,172.45,172.27,11.6048]
[1748497680811,5.7983,172.4,172.35,29.98]
[1748497681707,0.04034221,172.39,172.36,0.03838842]
[1748497682005,3.26915006,172.39,172.36,0.03838842]
[1748497682601,0.04228731,172.39,172.36,0.03838842]
[1748497682809,3.26915006,172.39,172.36,0.03838842]
[1748497682999,5.7992,172.37,172.36,0.03838842]
[1748497683313,3.26915006,172.39,172.36,0.03838842]
[1748497683508,5.7989,172.38,172.36,0.03838842]
[1748497685804,5.7992,172.37,172.36,0.03838842]
[1748497686205,5.799,172.38,172.36,0.03838842]
[1748497688813,5.7992,172.37,172.36,0.03838842]
[1748497689318,5.799,172.38,172.36,0.03838842]
[1748497691114,5.7992,172.37,172.36,0.03838842]
[1748497692314,5.8,172.35,172.29,30.0]
[1748497692509,3.22686275,172.38,172.29,30.0]
[1748497692718,3.22686275,172.38,172.31,5.8012]
[1748497692719,30.0,172.37,172.31,5.8012]
[1748497693217,5.8001,172.35,172.32,0.04348245]
[1748497693618,0.04076184,172.36,172.32,0.04348245]
[1748497694319,5.8002,172.34,172.32,0.04348245]
[1748497696015,5.8,172.35,172.32,0.04348245]
[1748497700130,5.8001,172.34,172.32,0.04348245]
[1748497700730,5.8005,172.33,172.32,0.04348245]
[1748497702230,5.8003,172.34,172.32,0.04348245]
[1748497703433,5.8005,172.33,172.32,0.04348245]
[1748497705827,5.8005,172.33,172.32,0.01990754]
[1748497706032,30.0,172.33,172.26,1.9042]
[1748497706231,3.22686275,172.3,172.19,3.9646]
[1748497706436,3.22686275,172.3,172.22,3.22686275]
[1748497706938,30.0,172.29,172.2,33.22686275]
[1748497707138,0.03891133,172.26,172.23,0.04234329]
[1748497707539,3.22686275,172.25,172.23,0.04234329]
[1748497707738,33.22686275,172.25,172.23,0.04234329]
[1748497707932,30.0,172.25,172.23,0.04234329]
[1748497708942,5.8035,172.24,172.23,0.04234329]
[1748497717649,30.0,172.25,172.15,5.8064]
[1748497717650,32.0806,172.25,172.15,5.8064]
[1748497717951,5.05615351,172.23,172.11,29.8]
[1748497718146,1.8814,172.22,172.11,29.8]
[1748497718341,29.8,172.21,172.11,29.8]
[1748497718545,0.0427036,172.18,172.14,0.03770923]
[1748497718942,5.8483036,172.18,172.14,5.84460923]
[1748497719448,0.0427036,172.18,172.14,0.03770923]
[1748497720143,5.8064,172.16,172.14,0.03770923]
[1748497720538,29.8,172.17,172.14,0.03770923]
[1748497721149,0.0427036,172.18,172.14,0.03770923]
[1748497721649,0.0427036,172.18,172.15,5.8063]
[1748497723046,0.0427036,172.18,172.16,5.8061]
[1748497725345,0.0427036,172.18,172.17,5.8059]
[1748497728054,29.8,172.23,172.19,5.805]
[1748497728251,29.8,172.23,172.15,2.0669]
[1748497728460,29.8,172.26,172.15,2.0669]
[1748497728651,5.8043,172.22,172.18,5.8053]
[1748497728850,29.8,172.26,172.15,2.0669]
[1748497729150,5.8047,172.21,172.19,0.03878974]
[1748497729848,5.8049,172.2,172.19,0.03878974]
[1748497735958,5.8068,172.15,172.1,29.82]
[1748497736165,5.8068,172.15,172.11,5.8077]
[1748497736656,5.8068,172.15,172.1,29.82]
[1748497736859,0.03895918,172.14,172.11,0.04446222]
[1748497737969,0.03895918,172.14,172.12,5.8076]
[1748497739267,0.03895918,172.14,172.11,0.04446222]
[1748497739765,5.84605918,172.14,172.11,0.04446222]
[1748497740860,5.8073,172.13,172.11,0.04446222]
[1748497742363,5.84595918,172.14,172.11,0.04446222]
[1748497743869,5.8073,172.13,172.11,0.04446222]
[1748497745565,5.8076,172.12,172.11,0.04446222]
[1748497747972,0.03895918,172.14,172.11,0.04446222]
[1748497747973,5.8073,172.13,172.11,0.04446222]
[1748497752368,5.8076,172.12,172.11,0.04446222]
[1748497753675,5.8073,172.13,172.11,0.04446222]
[1748497755979,0.03895918,172.14,172.11,0.04446222]
[1748497756975,0.03895918,172.14,172.12,5.8074]
[1748497757277,0.03895918,172.14,172.11,0.04446222]
[1748497759574,0.03895918,172.14,172.11,29.80446222]
[1748497759773,0.03895918,172.14,172.13,5.8072]
[1748497764081,0.03895918,172.14,172.12,5.8075]
[1748497769488,0.03895918,172.14,172.13,5.8072]
[1748497770279,31.7326,172.21,172.16,5.8061]
[1748497770478,31.7326,172.21,172.11,29.80446222]
[1748497770479,29.76,172.24,172.15,29.76]
[1748497770879,29.76,172.24,172.18,5.8053]
[1748497771286,5.8044,172.22,172.19,0.03701754]
[1748497771485,0.04008484,172.23,172.19,0.03701754]
[1748497771886,5.8046,172.21,172.19,0.03701754]
[1748497773293,0.04008484,172.23,172.19,0.03701754]
[1748497774292,5.8043,172.22,172.19,0.03701754]
[1748497776099,5.8043,172.22,172.19,5.84211754]
[1748497777801,0.04008484,172.23,172.2,5.8049]
[1748497778402,0.04008484,172.23,172.19,0.03701754]
[1748497779007,0.04008484,172.23,172.22,5.8042]
[1748497782407,0.04008484,172.23,172.21,5.8044]
[1748497786213,0.04008484,172.23,172.19,29.77701754]
[1748497786910,0.04008484,172.23,172.21,5.8043]
[1748497792017,0.04008484,172.23,172.22,5.8042]
[1748497792222,29.72,172.34,172.2,5.05615351]
[1748497792418,29.72,172.34,172.2,6.94635351]
[1748497792719,5.8013,172.31,172.26,5.8029]
[1748497792919,29.72,172.34,172.23,29.72]
[1748497793119,5.84278004,172.29,172.26,0.04465994]
[1748497793320,0.04078004,172.29,172.26,0.04465994]
[1748497795413,5.84268004,172.29,172.26,0.04465994]
[1748497796222,0.04078004,172.29,172.26,5.84745994]
[1748497796824,5.84268004,172.29,172.26,5.84745994]
[1748497797019,5.84268004,172.29,172.26,0.04465994]
[1748497798622,5.8023,172.28,172.26,0.04465994]
[1748497798825,0.04078004,172.29,172.26,0.04465994]
[1748497799919,5.8025,172.27,172.26,0.04465994]
[1748497800719,5.8023,172.28,172.26,0.04465994]
[1748497801318,0.04078004,172.29,172.26,0.04465994]
[1748497801319,5.8025,172.27,172.26,0.04465994]
[1748497801722,2.00718004,172.29,172.16,3.93]
[1748497801924,1.9664,172.29,172.18,29.72]
[1748497802418,1.9664,172.29,172.21,5.8045]
[1748497802826,0.04015411,172.27,172.23,0.03875045]
[1748497803929,5.8035,172.24,172.23,0.03875045]
[1748497805730,29.7,172.26,172.23,0.03875045]
[1748497806923,35.5029,172.26,172.23,0.03875045]
[1748497807122,5.8029,172.26,172.23,0.03875045]
[1748497807940,0.04015411,172.27,172.23,0.03875045]
[1748497808429,5.84295411,172.27,172.23,5.84255045]
[1748497811440,5.803,172.26,172.23,5.84255045]
[1748497813235,5.803,172.26,172.23,0.03875045]
[1748497814232,0.04015411,172.27,172.23,0.03875045]
[1748497815835,5.8035,172.24,172.23,0.03875045]
[1748497816836,5.8035,172.24,172.23,0.00045251]
[1748497817142,5.8056,172.18,172.14,29.7]
[1748497817544,5.8056,172.18,172.15,5.8065]
[1748497818041,5.8059,172.17,172.15,5.84602441]
[1748497818242,0.04195769,172.18,172.15,0.03952441]
[1748497818640,5.8062,172.16,172.15,0.03952441]
[1748497820036,5.806,172.17,172.15,0.03952441]
[1748497820436,0.04195769,172.18,172.15,5.84602441]
[1748497820641,0.04195769,172.18,172.15,0.03952441]
[1748497821341,0.04195769,172.18,172.16,5.8062]
[1748497821547,0.04195769,172.18,172.15,0.03952441]
[1748497821751,0.04195769,172.18,172.17,5.8059]
[1748497822245,0.04195769,172.18,172.16,5.8061]
[1748497823039,0.04195769,172.18,172.15,5.84602441]
[1748497824150,0.04195769,172.18,172.15,0.03952441]
[1748497824342,0.04195769,172.18,172.15,29.75952441]
[1748497825342,29.72,172.24,172.15,29.75952441]
[1748497825847,29.72,172.24,172.16,1.9142]
[1748497826050,31.6926,172.27,172.21,5.8045]
[1748497826251,29.72,172.27,172.21,5.8045]
[1748497826454,0.03855132,172.26,172.22,0.04452013]
[1748497827543,5.8034,172.25,172.22,0.04452013]
[1748497829257,5.8036,172.24,172.22,0.04452013]
[1748497830458,5.8033,172.25,172.22,0.04452013]
[1748497831258,0.03855132,172.26,172.22,0.04452013]
[1748497831761,5.8038,172.24,172.22,0.04452013]
[1748497832567,5.8033,172.25,172.22,0.04452013]
[1748497832765,0.03855132,172.26,172.22,0.04452013]
[1748497832955,5.8038,172.24,172.22,0.04452013]
[1748497835564,5.8039,172.23,172.22,0.04452013]
[1748497837955,35.5039,172.23,172.22,0.04452013]
[1748497838154,5.8059,172.17,172.13,29.7]
[1748497838962,5.8059,172.17,172.14,5.8067]
[1748497839161,0.04323257,172.17,172.14,5.84427605]
[1748497841058,0.04323257,172.17,172.15,5.8065]
[1748497841457,0.04323257,172.17,172.14,0.03757605]
[1748497841668,5.84923257,172.17,172.14,5.84437605]
[1748497842760,5.84923257,172.17,172.14,0.03757605]
[1748497844464,0.04323257,172.17,172.14,0.03757605]
[1748497844959,5.8062,172.16,172.14,0.03757605]
[1748497845966,0.04323257,172.17,172.14,0.03757605]
[1748497846476,0.04323257,172.17,172.14,5.84437605]
[1748497847065,0.04323257,172.17,172.15,5.8064]
[1748497849674,5.8062,172.16,172.14,0.03757605]
[1748497849874,0.04323257,172.17,172.14,0.03757605]
[1748497850977,5.8066,172.15,172.14,0.03757605]
[1748497854675,0.04323257,172.17,172.14,0.03757605]
[1748497855575,5.84943257,172.17,172.14,0.03757605]
[1748497856389,5.84943257,172.17,172.14,5.84437605]
[1748497856689,5.8063,172.16,172.14,0.03757605]
[1748497857790,5.84913257,172.17,172.14,5.84437605]
[1748497859286,0.04323257,172.17,172.15,5.8065]
[1748497860286,0.04323257,172.17,172.16,5.8062]
[1748497861192,5.8043,172.22,172.19,5.8051]
[1748497861581,29.72,172.25,172.19,5.8051]
[1748497861787,5.804,172.23,172.19,5.8051]
[1748497861984,5.804,172.23,172.15,29.72]
[1748497862182,0.03945526,172.21,172.17,0.04296984]
[1748497862792,0.03945526,172.21,172.2,5.8049]
[1748497863688,0.03945526,172.21,172.19,5.8051]
[1748497868599,0.03945526,172.21,172.17,0.04296984]
[1748497869491,5.8051,172.2,172.17,0.04296984]
[1748497870093,5.8051,172.2,172.17,5.84876984]
[1748497870295,5.8053,172.19,172.17,0.04296984]
[1748497870496,0.03945526,172.21,172.17,0.04296984]
[1748497871101,5.8049,172.2,172.17,0.04296984]
[1748497871402,0.03945526,172.21,172.17,0.04296984]
[1748497872193,5.8049,172.2,172.17,0.04296984]
[1748497872600,5.8053,172.19,172.17,0.04296984]
[1748497873696,0.03945526,172.21,172.17,0.04296984]
[1748497873697,5.8056,172.18,172.17,0.04296984]
[1748497875895,29.73945526,172.21,172.17,0.04296984]
[1748497876609,5.8054,172.19,172.17,0.04296984]
[1748497878197,5.8056,172.18,172.17,0.04296984]
[1748497878696,5.8049,172.2,172.17,0.04296984]
[1748497878903,29.73945526,172.21,172.17,0.04296984]
[1748497879500,5.8056,172.18,172.17,0.04296984]
[1748497879700,29.73945526,172.21,172.17,0.04296984]
[1748497880108,5.8054,172.19,172.17,0.04296984]
[1748497882508,5.805,172.2,172.17,0.04296984]
[1748497882912,29.73945526,172.21,172.17,0.04296984]
[1748497883412,5.8055,172.19,172.17,0.04296984]
[1748497885012,5.8056,172.18,172.17,0.04296984]
[1748497896235,5.8053,172.19,172.17,0.04296984]
[1748497898724,5.8056,172.18,172.17,0.04296984]
[1748497903427,5.05615351,172.19,172.08,1.8921]
[1748497903633,5.05615351,172.19,172.08,31.5721]
[1748497904029,5.8071,172.14,172.1,5.808]
[1748497904336,5.05615351,172.16,172.05,29.68]
[1748497904528,0.03699033,172.12,172.09,0.04386598]
[1748497904832,5.8082,172.11,172.09,0.04386598]
[1748497905028,0.03699033,172.12,172.09,0.04386598]
[1748497905534,5.8079,172.11,172.09,0.04386598]
[1748497905833,0.03699033,172.12,172.09,0.04386598]
[1748497906937,5.8082,172.1,172.09,0.04386598]
[1748497907832,5.8094,172.07,172.03,3.8397]
[1748497908035,5.8094,172.07,172.04,29.68]
[1748497908639,5.05615351,172.1,172.02,5.8109]
[1748497908839,0.03997336,172.08,172.04,0.0401474]
[1748497909938,5.8098,172.06,172.04,0.0401474]
[1748497910642,5.8099,172.05,172.04,0.0401474]
[1748497911138,5.8097,172.06,172.04,0.0401474]
[1748497913338,0.03997336,172.08,172.04,0.0401474]
[1748497913339,5.8099,172.05,172.04,0.0401474]
[1748497926347,5.8095,172.07,172.04,0.0401474]
[1748497928249,5.8096,172.06,172.04,0.0401474]
[1748497929053,5.8094,172.07,172.04,5.8503474]
[1748497929654,5.8096,172.06,172.04,0.0401474]
[1748497930850,0.03997336,172.08,172.04,0.0401474]
[1748497932050,5.84897336,172.08,172.05,5.8097]
[1748497932252,0.03997336,172.08,172.04,0.0401474]
[1748497933957,5.8097,172.06,172.04,0.0401474]
[1748497934857,5.8099,172.05,172.04,0.0401474]
[1748497945267,5.8116,172.01,171.99,29.7]
[1748497945566,5.05615351,172.07,171.98,1.9454]
[1748497946167,0.04202181,172.04,172.01,0.03948448]
[1748497947164,5.811,172.02,172.01,0.03948448]
[1748497949369,5.8107,172.03,172.01,0.03948448]
[1748497949566,0.04202181,172.04,172.01,0.03948448]
[1748497951166,5.8109,172.03,172.01,0.03948448]
[1748497951366,0.04202181,172.04,172.01,0.03948448]
[1748497952670,5.811,172.02,172.01,0.03948448]
[1748497956465,5.811,172.02,172.01,8.448e-05]
[1748497956668,5.8129,171.97,171.93,31.652]
[1748497956972,29.68,172.04,171.93,31.652]
[1748497957275,29.68,172.04,171.93,37.4659]
[1748497957573,0.04086826,172.0,171.97,0.04367437]
[1748497958867,5.8123,171.98,171.97,0.04367437]
[1748497962973,0.04086826,172.0,171.97,0.04367437]
[1748497963367,0.04086826,172.0,171.97,5.92487437]
[1748497963569,0.04086826,172.0,171.98,5.8121]
[1748497963772,0.04086826,172.0,171.97,5.92487437]
[1748497964175,0.04086826,172.0,171.98,5.8123]
[1748497965881,5.85256826,172.0,171.97,11.73747437]
[1748497966073,0.04086826,172.0,171.97,5.92487437]
[1748497966986,0.04086826,172.0,171.98,5.8123]
[1748497967683,0.04086826,172.0,171.97,5.92487437]
[1748497968981,0.04086826,172.0,171.99,5.812]
[1748497972082,0.04086826,172.0,171.98,5.8123]
[1748497973087,0.04086826,172.0,171.97,11.73737437]
[1748497973581,0.04086826,172.0,171.97,5.92487437]
[1748497973778,0.04086826,172.0,171.97,4.01487437]
[1748497974991,5.812,171.99,171.97,4.01487437]
[1748497975195,0.04086826,172.0,171.97,4.01487437]
[1748497975583,5.85276826,172.0,171.97,4.01487437]
[1748497975789,0.04086826,172.0,171.97,4.01487437]
[1748497975992,0.04086826,172.0,171.97,2.10007437]
[1748497976201,5.8123,171.98,171.97,0.04367437]
[1748497983103,29.70086826,172.0,171.92,2.0107]
[1748497984000,29.70086826,172.0,171.94,0.03665717]
[1748497984199,5.8133,171.95,171.94,0.03665717]
[1748497985506,5.815,171.91,171.87,5.816]
[1748497985806,5.05615351,171.95,171.86,2.0084]
[1748497986297,5.05615351,171.95,171.86,7.8246]
[1748497986504,0.04080352,171.92,171.89,0.04206836]
[1748497988200,29.70080352,171.92,171.89,0.04206836]
[1748497988706,5.815,171.9,171.89,0.04206836]
[1748497990303,5.8163,171.87,171.83,5.8171]
[1748497990807,5.8159,171.88,171.84,5.817]
[1748497991010,34.71615351,171.92,171.84,5.817]
[1748497991212,34.71615351,171.92,171.8,2.0225]
[1748497991405,34.71615351,171.92,171.86,0.04142847]
[1748497991406,5.816,171.87,171.86,0.04142847]
[1748497994110,29.64,171.88,171.8,2.0225]
[1748497994508,5.8174,171.83,171.8,2.0225]
[1748497995013,0.03858555,171.83,171.8,2.06642941]
[1748497996417,5.85598555,171.83,171.8,2.06642941]
[1748497997118,5.8177,171.82,171.8,2.06642941]
[1748497999219,0.03858555,171.83,171.8,2.06642941]